Workbook

Sheet Score bijhouden
B1: Voer hier uw scores in
C3: Les | D3: Type | E3: Beschrijving | F3: Score
C4: Modern Frans | D4: Huiswerk | E4: Geschiedenis tweede wereldoorlog | F4: 80%
C5: Geavanceerde programmering in Java | D5: Tussentijds examen | F5: 75%
C6: Spaans | D6: Huiswerk | F6: 50%
C7: Theoretische natuurkunde | D7: Huiswerk | F7: 95%
C8: Modern Frans | D8: Huiswerk | E8: Geschiedenis eerste wereldoorlog | F8: 90%
C9: Modern Frans | D9: Huiswerk | E9: Pagina's 30-41 | F9: 80%
C10: Samenstelling | D10: Essay | E10: Beargumentering | F10: 95%
C11: Wiskunde 1 | D11: Huiswerk | E11: Pagina's 21 en 26 | F11: 80%
C12: Wiskunde 2 | D12: Huiswerk | E12: Pagina's 15 en 18 | F12: 85%
C13: Wiskunde 1 | D13: Huiswerk | E13: Pagina's 34-36 | F13: 80%
C14: Wiskunde 2 | D14: Test | F14: 95%

Sheet Uw prestaties
B1: Uw prestaties
C3: Taal
C4: ="Uren: "&SUM(tblKlassen[Uren met studiepunten]) -> Uren: 24 | D4: =AVERAGE(D7:D31) -> 81% | E4: =AVERAGE(E7:E31) -> 2.71 | F4: =SUM(F7:F31) -> 2.63 | G4: =IFERROR(HLOOKUP(D4,ltstToewijzingGemiddelde,2),"") -> B-
C6: Lessen | D6: % | E6: Gemiddelde | F6: Gewogen gemiddelde | G6: Letter | H6: Algehele prestaties
C7: =Berekeningen!C6 -> Modern Frans | D7: =Berekeningen!AL6 -> 83% | E7: =Berekeningen!AM6 -> 3.00 | F7: =IFERROR(E7*Instellingen!D9/SUM(tblKlassen[Uren met studiepunten]),"") -> 0.38 | G7: =Berekeningen!AN6 -> B
C8: =Berekeningen!C7 -> Theoretische natuurkunde | D8: =Berekeningen!AL7 -> 95% | E8: =Berekeningen!AM7 -> 4.00 | F8: =IFERROR(E8*Instellingen!D10/SUM(tblKlassen[Uren met studiepunten]),"") -> 0.50 | G8: =Berekeningen!AN7 -> A
C9: =Berekeningen!C8 -> Wiskunde 1 | D9: =Berekeningen!AL8 -> 80% | E9: =Berekeningen!AM8 -> 2.67 | F9: =IFERROR(E9*Instellingen!D11/SUM(tblKlassen[Uren met studiepunten]),"") -> 0.45 | G9: =Berekeningen!AN8 -> B-
C10: =Berekeningen!C9 -> Wiskunde 2 | D10: =Berekeningen!AL9 -> 89% | E10: =Berekeningen!AM9 -> 3.33 | F10: =IFERROR(E10*Instellingen!D12/SUM(tblKlassen[Uren met studiepunten]),"") -> 0.56 | G10: =Berekeningen!AN9 -> B+
C11: =Berekeningen!C10 -> Geavanceerde programmering in Java | D11: =Berekeningen!AL10 -> 75% | E11: =Berekeningen!AM10 -> 2.00 | F11: =IFERROR(E11*Instellingen!D13/SUM(tblKlassen[Uren met studiepunten]),"") -> 0.42 | G11: =Berekeningen!AN10 -> C
C12: =Berekeningen!C11 -> Spaans | D12: =Berekeningen!AL11 -> 50% | E12: =Berekeningen!AM11 -> 0.00 | F12: =IFERROR(E12*Instellingen!D14/SUM(tblKlassen[Uren met studiepunten]),"") -> 0.00 | G12: =Berekeningen!AN11 -> F
C13: =Berekeningen!C12 -> Samenstelling | D13: =Berekeningen!AL12 -> 95% | E13: =Berekeningen!AM12 -> 4.00 | F13: =IFERROR(E13*Instellingen!D15/SUM(tblKlassen[Uren met studiepunten]),"") -> 0.33 | G13: =Berekeningen!AN12 -> A
C14: =Berekeningen!C13 ->  | D14: =Berekeningen!AL13 ->  | E14: =Berekeningen!AM13 ->  | F14: =IFERROR(E14*Instellingen!D16/SUM(tblKlassen[Uren met studiepunten]),"") ->  | G14: =Berekeningen!AN13 -> 
C15: =Berekeningen!C14 ->  | D15: =Berekeningen!AL14 ->  | E15: =Berekeningen!AM14 ->  | F15: =IFERROR(E15*Instellingen!D17/SUM(tblKlassen[Uren met studiepunten]),"") ->  | G15: =Berekeningen!AN14 -> 
C16: =Berekeningen!C15 ->  | D16: =Berekeningen!AL15 ->  | E16: =Berekeningen!AM15 ->  | F16: =IFERROR(E16*Instellingen!D18/SUM(tblKlassen[Uren met studiepunten]),"") ->  | G16: =Berekeningen!AN15 -> 
C17: =Berekeningen!C16 ->  | D17: =Berekeningen!AL16 ->  | E17: =Berekeningen!AM16 ->  | F17: =IFERROR(E17*Instellingen!D19/SUM(tblKlassen[Uren met studiepunten]),"") ->  | G17: =Berekeningen!AN16 -> 
C18: =Berekeningen!C17 ->  | D18: =Berekeningen!AL17 ->  | E18: =Berekeningen!AM17 ->  | F18: =IFERROR(E18*Instellingen!D20/SUM(tblKlassen[Uren met studiepunten]),"") ->  | G18: =Berekeningen!AN17 -> 
C19: =Berekeningen!C18 ->  | D19: =Berekeningen!AL18 ->  | E19: =Berekeningen!AM18 ->  | F19: =IFERROR(E19*Instellingen!D21/SUM(tblKlassen[Uren met studiepunten]),"") ->  | G19: =Berekeningen!AN18 -> 
C20: =Berekeningen!C19 ->  | D20: =Berekeningen!AL19 ->  | E20: =Berekeningen!AM19 ->  | F20: =IFERROR(E20*Instellingen!D22/SUM(tblKlassen[Uren met studiepunten]),"") ->  | G20: =Berekeningen!AN19 -> 
C21: =Berekeningen!C20 ->  | D21: =Berekeningen!AL20 ->  | E21: =Berekeningen!AM20 ->  | F21: =IFERROR(E21*Instellingen!D23/SUM(tblKlassen[Uren met studiepunten]),"") ->  | G21: =Berekeningen!AN20 -> 
C22: =Berekeningen!C21 ->  | D22: =Berekeningen!AL21 ->  | E22: =Berekeningen!AM21 ->  | F22: =IFERROR(E22*Instellingen!D24/SUM(tblKlassen[Uren met studiepunten]),"") ->  | G22: =Berekeningen!AN21 -> 
C23: =Berekeningen!C22 ->  | D23: =Berekeningen!AL22 ->  | E23: =Berekeningen!AM22 ->  | F23: =IFERROR(E23*Instellingen!D25/SUM(tblKlassen[Uren met studiepunten]),"") ->  | G23: =Berekeningen!AN22 -> 
C24: =Berekeningen!C23 ->  | D24: =Berekeningen!AL23 ->  | E24: =Berekeningen!AM23 ->  | F24: =IFERROR(E24*Instellingen!D26/SUM(tblKlassen[Uren met studiepunten]),"") ->  | G24: =Berekeningen!AN23 -> 
C25: =Berekeningen!C24 ->  | D25: =Berekeningen!AL24 ->  | E25: =Berekeningen!AM24 ->  | F25: =IFERROR(E25*Instellingen!D27/SUM(tblKlassen[Uren met studiepunten]),"") ->  | G25: =Berekeningen!AN24 -> 
C26: =Berekeningen!C25 ->  | D26: =Berekeningen!AL25 ->  | E26: =Berekeningen!AM25 ->  | F26: =IFERROR(E26*Instellingen!D28/SUM(tblKlassen[Uren met studiepunten]),"") ->  | G26: =Berekeningen!AN25 -> 
C27: =Berekeningen!C26 ->  | D27: =Berekeningen!AL26 ->  | E27: =Berekeningen!AM26 ->  | F27: =IFERROR(E27*Instellingen!D29/SUM(tblKlassen[Uren met studiepunten]),"") ->  | G27: =Berekeningen!AN26 -> 
C28: =Berekeningen!C27 ->  | D28: =Berekeningen!AL27 ->  | E28: =Berekeningen!AM27 ->  | F28: =IFERROR(E28*Instellingen!D30/SUM(tblKlassen[Uren met studiepunten]),"") ->  | G28: =Berekeningen!AN27 -> 
C29: =Berekeningen!C28 ->  | D29: =Berekeningen!AL28 ->  | E29: =Berekeningen!AM28 ->  | F29: =IFERROR(E29*Instellingen!D31/SUM(tblKlassen[Uren met studiepunten]),"") ->  | G29: =Berekeningen!AN28 -> 
C30: =Berekeningen!C29 ->  | D30: =Berekeningen!AL29 ->  | E30: =Berekeningen!AM29 ->  | F30: =IFERROR(E30*Instellingen!D32/SUM(tblKlassen[Uren met studiepunten]),"") ->  | G30: =Berekeningen!AN29 -> 
C31: =Berekeningen!C30 ->  | D31: =Berekeningen!AL30 ->  | E31: =Berekeningen!AM30 ->  | F31: =IFERROR(E31*Instellingen!D33/SUM(tblKlassen[Uren met studiepunten]),"") ->  | G31: =Berekeningen!AN30 -> 

Sheet Instellingen
B1: Instellingen
C2: Toewijzing van scores en gemiddelde
C3: Percentage | D3: 0% | E3: 60% | F3: 63% | G3: 67% | H3: 70% | I3: 73% | J3: 77% | K3: 80% | L3: 83% | M3: 87% | N3: 90% | O3: 93% | P3: 97%
C4: Letterbeoordeling | D4: F | E4: D- | F4: D | G4: D+ | H4: C- | I4: C | J4: C+ | K4: B- | L4: B | M4: B+ | N4: A- | O4: A | P4: A+
C5: Gemiddelde | D5: 0 | E5: 0.67 | F5: 1 | G5: 1.33 | H5: 1.67 | I5: 2 | J5: 2.33 | K5: 2.67 | L5: 3 | M5: 3.33 | N5: 3.67 | O5: 4 | P5: 4
C7: Gewogen scores voor maximaal 25 lessen
C8: Lessen die u volgt | D8: Uren met studiepunten | E8: Huiswerk | F8: Essay | G8: Test | H8: Project | I8: Tussentijds examen | J8: Eindexamen | K8: Overige | L8: % totaal
C9: Modern Frans | D9: 3.0 | E9: 10% | F9: 15% | G9: 15% | H9: 10% | I9: 20% | J9: 30% | L9: =SUM(tblKlassen[[#This Row],[Huiswerk]:[Overige]]) -> 100%
C10: Theoretische natuurkunde | D10: 3.0 | E10: 15% | F10: 15% | G10: 10% | H10: 10% | I10: 15% | J10: 30% | K10: 5% | L10: =SUM(tblKlassen[[#This Row],[Huiswerk]:[Overige]]) -> 100%
C11: Wiskunde 1 | D11: 4.0 | E11: 10% | F11: 15% | G11: 15% | H11: 10% | I11: 20% | J11: 30% | L11: =SUM(tblKlassen[[#This Row],[Huiswerk]:[Overige]]) -> 100%
C12: Wiskunde 2 | D12: 4.0 | E12: 15% | F12: 15% | G12: 10% | H12: 10% | I12: 15% | J12: 30% | K12: 5% | L12: =SUM(tblKlassen[[#This Row],[Huiswerk]:[Overige]]) -> 100%
C13: Geavanceerde programmering in Java | D13: 5.0 | E13: 15% | F13: 15% | G13: 10% | H13: 10% | I13: 20% | J13: 30% | L13: =SUM(tblKlassen[[#This Row],[Huiswerk]:[Overige]]) -> 100%
C14: Spaans | D14: 3.0 | E14: 10% | F14: 15% | G14: 17% | H14: 13% | I14: 20% | J14: 20% | K14: 5% | L14: =SUM(tblKlassen[[#This Row],[Huiswerk]:[Overige]]) -> 100%
C15: Samenstelling | D15: 2.0 | E15: 15% | F15: 15% | G15: 12% | H15: 15% | I15: 15% | J15: 25% | K15: 3% | L15: =SUM(tblKlassen[[#This Row],[Huiswerk]:[Overige]]) -> 100%

Sheet Berekeningen (hidden)
B1: Berekeningen
C2: Dit werkblad bevat berekeningen voor uw cijfers en gemiddelde en moet verborgen blijven. Wijzigingen in dit blad kunnen tot fouten leiden.
C4: Lijst met huidige lessen | D4: Scores (van 1) | AC4: Cijferberekening
C5: Les | D5: 1 | E5: 2 | F5: 3 | G5: 4 | H5: 5 | I5: 6 | J5: 7 | K5: 8 | L5: 9 | M5: 10 | N5: 11 | O5: 12 | P5: 13 | Q5: 14 | R5: 15 | S5: 16 | T5: 17 | U5: 18 | V5: 19 | W5: 20 | X5: 21 | Y5: 22 | Z5: 23 | AA5: 24 | AB5: 25 | AC5: =tblKlassen[[#Headers],[Huiswerk]] -> Huiswerk | AD5: =tblKlassen[[#Headers],[Essay]] -> Essay | AE5: =tblKlassen[[#Headers],[Test]] -> Test | AF5: =tblKlassen[[#Headers],[Project]] -> Project | AG5: =tblKlassen[[#Headers],[Tussentijds examen]] -> Tussentijds examen | AH5: =tblKlassen[[#Headers],[Eindexamen]] -> Eindexamen | AI5: =tblKlassen[[#Headers],[Overige]] -> Overige | AJ5: Totaal | AK5: Totaal aantal mogelijke punten | AL5: Totaal % | AM5: Cijfer | AN5: Letterbeoordeling
C6: =IF(Instellingen!C9="","",Instellingen!C9) -> Modern Frans | D6: =IFERROR(INDEX(tblKlassecijfers[],MATCH($C6:$C30&D$5:AB$5,Berekeningen!$C$33:$C$657,0),4),"") -> 80% | E6: 90% | F6: 80% | AC6: =IFERROR(AVERAGEIFS(tblKlassecijfers[Score],tblKlassecijfers[Les],Berekeningen!$C6,tblKlassecijfers[Type],Berekeningen!AC$5)*Instellingen!E9,"") -> 0.08333333333 | AD6: =IFERROR(AVERAGEIFS(tblKlassecijfers[Score],tblKlassecijfers[Les],Berekeningen!$C6,tblKlassecijfers[Type],Berekeningen!AD$5)*Instellingen!F9,"") ->  | AE6: =IFERROR(AVERAGEIFS(tblKlassecijfers[Score],tblKlassecijfers[Les],Berekeningen!$C6,tblKlassecijfers[Type],Berekeningen!AE$5)*Instellingen!G9,"") ->  | AF6: =IFERROR(AVERAGEIFS(tblKlassecijfers[Score],tblKlassecijfers[Les],Berekeningen!$C6,tblKlassecijfers[Type],Berekeningen!AF$5)*Instellingen!H9,"") ->  | AG6: =IFERROR(AVERAGEIFS(tblKlassecijfers[Score],tblKlassecijfers[Les],Berekeningen!$C6,tblKlassecijfers[Type],Berekeningen!AG$5)*Instellingen!I9,"") ->  | AH6: =IFERROR(AVERAGEIFS(tblKlassecijfers[Score],tblKlassecijfers[Les],Berekeningen!$C6,tblKlassecijfers[Type],Berekeningen!AH$5)*Instellingen!J9,"") ->  | AI6: =IFERROR(AVERAGEIFS(tblKlassecijfers[Score],tblKlassecijfers[Les],Berekeningen!$C6,tblKlassecijfers[Type],Berekeningen!AI$5)*Instellingen!K9,"") ->  | AJ6: =SUM(AC6:AI6) -> 0.08333333333 | AK6: =SUMIFS(Instellingen!E9:K9,Berekeningen!AC6:AI6,">0") -> 0.1 | AL6: =IFERROR(AJ6/AK6,"") -> 83% | AM6: =IFERROR(HLOOKUP(AL6,ltstToewijzingGemiddelde,3),"") -> 3 | AN6: =IFERROR(HLOOKUP(AL6,ltstToewijzingGemiddelde,2),"") -> B
C7: =IF(Instellingen!C10="","",Instellingen!C10) -> Theoretische natuurkunde | D7: 95% | AC7: =IFERROR(AVERAGEIFS(tblKlassecijfers[Score],tblKlassecijfers[Les],Berekeningen!$C7,tblKlassecijfers[Type],Berekeningen!AC$5)*Instellingen!E10,"") -> 0.1425 | AD7: =IFERROR(AVERAGEIFS(tblKlassecijfers[Score],tblKlassecijfers[Les],Berekeningen!$C7,tblKlassecijfers[Type],Berekeningen!AD$5)*Instellingen!F10,"") ->  | AE7: =IFERROR(AVERAGEIFS(tblKlassecijfers[Score],tblKlassecijfers[Les],Berekeningen!$C7,tblKlassecijfers[Type],Berekeningen!AE$5)*Instellingen!G10,"") ->  | AF7: =IFERROR(AVERAGEIFS(tblKlassecijfers[Score],tblKlassecijfers[Les],Berekeningen!$C7,tblKlassecijfers[Type],Berekeningen!AF$5)*Instellingen!H10,"") ->  | AG7: =IFERROR(AVERAGEIFS(tblKlassecijfers[Score],tblKlassecijfers[Les],Berekeningen!$C7,tblKlassecijfers[Type],Berekeningen!AG$5)*Instellingen!I10,"") ->  | AH7: =IFERROR(AVERAGEIFS(tblKlassecijfers[Score],tblKlassecijfers[Les],Berekeningen!$C7,tblKlassecijfers[Type],Berekeningen!AH$5)*Instellingen!J10,"") ->  | AI7: =IFERROR(AVERAGEIFS(tblKlassecijfers[Score],tblKlassecijfers[Les],Berekeningen!$C7,tblKlassecijfers[Type],Berekeningen!AI$5)*Instellingen!K10,"") ->  | AJ7: =SUM(AC7:AI7) -> 0.1425 | AK7: =SUMIFS(Instellingen!E10:K10,Berekeningen!AC7:AI7,">0") -> 0.15 | AL7: =IFERROR(AJ7/AK7,"") -> 95% | AM7: 4 | AN7: A
C8: =IF(Instellingen!C11="","",Instellingen!C11) -> Wiskunde 1 | D8: 80% | E8: 80% | AC8: =IFERROR(AVERAGEIFS(tblKlassecijfers[Score],tblKlassecijfers[Les],Berekeningen!$C8,tblKlassecijfers[Type],Berekeningen!AC$5)*Instellingen!E11,"") -> 0.08 | AD8: =IFERROR(AVERAGEIFS(tblKlassecijfers[Score],tblKlassecijfers[Les],Berekeningen!$C8,tblKlassecijfers[Type],Berekeningen!AD$5)*Instellingen!F11,"") ->  | AE8: =IFERROR(AVERAGEIFS(tblKlassecijfers[Score],tblKlassecijfers[Les],Berekeningen!$C8,tblKlassecijfers[Type],Berekeningen!AE$5)*Instellingen!G11,"") ->  | AF8: =IFERROR(AVERAGEIFS(tblKlassecijfers[Score],tblKlassecijfers[Les],Berekeningen!$C8,tblKlassecijfers[Type],Berekeningen!AF$5)*Instellingen!H11,"") ->  | AG8: =IFERROR(AVERAGEIFS(tblKlassecijfers[Score],tblKlassecijfers[Les],Berekeningen!$C8,tblKlassecijfers[Type],Berekeningen!AG$5)*Instellingen!I11,"") ->  | AH8: =IFERROR(AVERAGEIFS(tblKlassecijfers[Score],tblKlassecijfers[Les],Berekeningen!$C8,tblKlassecijfers[Type],Berekeningen!AH$5)*Instellingen!J11,"") ->  | AI8: =IFERROR(AVERAGEIFS(tblKlassecijfers[Score],tblKlassecijfers[Les],Berekeningen!$C8,tblKlassecijfers[Type],Berekeningen!AI$5)*Instellingen!K11,"") ->  | AJ8: 0.08 | AK8: =SUMIFS(Instellingen!E11:K11,Berekeningen!AC8:AI8,">0") -> 0.1 | AL8: 80% | AM8: 2.67 | AN8: B-
C9: =IF(Instellingen!C12="","",Instellingen!C12) -> Wiskunde 2 | D9: 85% | E9: 95% | AC9: =IFERROR(AVERAGEIFS(tblKlassecijfers[Score],tblKlassecijfers[Les],Berekeningen!$C9,tblKlassecijfers[Type],Berekeningen!AC$5)*Instellingen!E12,"") -> 0.1275 | AD9: =IFERROR(AVERAGEIFS(tblKlassecijfers[Score],tblKlassecijfers[Les],Berekeningen!$C9,tblKlassecijfers[Type],Berekeningen!AD$5)*Instellingen!F12,"") ->  | AE9: =IFERROR(AVERAGEIFS(tblKlassecijfers[Score],tblKlassecijfers[Les],Berekeningen!$C9,tblKlassecijfers[Type],Berekeningen!AE$5)*Instellingen!G12,"") -> 0.095 | AF9: =IFERROR(AVERAGEIFS(tblKlassecijfers[Score],tblKlassecijfers[Les],Berekeningen!$C9,tblKlassecijfers[Type],Berekeningen!AF$5)*Instellingen!H12,"") ->  | AG9: =IFERROR(AVERAGEIFS(tblKlassecijfers[Score],tblKlassecijfers[Les],Berekeningen!$C9,tblKlassecijfers[Type],Berekeningen!AG$5)*Instellingen!I12,"") ->  | AH9: =IFERROR(AVERAGEIFS(tblKlassecijfers[Score],tblKlassecijfers[Les],Berekeningen!$C9,tblKlassecijfers[Type],Berekeningen!AH$5)*Instellingen!J12,"") ->  | AI9: =IFERROR(AVERAGEIFS(tblKlassecijfers[Score],tblKlassecijfers[Les],Berekeningen!$C9,tblKlassecijfers[Type],Berekeningen!AI$5)*Instellingen!K12,"") ->  | AJ9: 0.2225 | AK9: =SUMIFS(Instellingen!E12:K12,Berekeningen!AC9:AI9,">0") -> 0.25 | AL9: 89% | AM9: 3.33 | AN9: B+
C10: =IF(Instellingen!C13="","",Instellingen!C13) -> Geavanceerde programmering in Java | D10: 75% | AC10: =IFERROR(AVERAGEIFS(tblKlassecijfers[Score],tblKlassecijfers[Les],Berekeningen!$C10,tblKlassecijfers[Type],Berekeningen!AC$5)*Instellingen!E13,"") ->  | AD10: =IFERROR(AVERAGEIFS(tblKlassecijfers[Score],tblKlassecijfers[Les],Berekeningen!$C10,tblKlassecijfers[Type],Berekeningen!AD$5)*Instellingen!F13,"") ->  | AE10: =IFERROR(AVERAGEIFS(tblKlassecijfers[Score],tblKlassecijfers[Les],Berekeningen!$C10,tblKlassecijfers[Type],Berekeningen!AE$5)*Instellingen!G13,"") ->  | AF10: =IFERROR(AVERAGEIFS(tblKlassecijfers[Score],tblKlassecijfers[Les],Berekeningen!$C10,tblKlassecijfers[Type],Berekeningen!AF$5)*Instellingen!H13,"") ->  | AG10: =IFERROR(AVERAGEIFS(tblKlassecijfers[Score],tblKlassecijfers[Les],Berekeningen!$C10,tblKlassecijfers[Type],Berekeningen!AG$5)*Instellingen!I13,"") -> 0.15 | AH10: =IFERROR(AVERAGEIFS(tblKlassecijfers[Score],tblKlassecijfers[Les],Berekeningen!$C10,tblKlassecijfers[Type],Berekeningen!AH$5)*Instellingen!J13,"") ->  | AI10: =IFERROR(AVERAGEIFS(tblKlassecijfers[Score],tblKlassecijfers[Les],Berekeningen!$C10,tblKlassecijfers[Type],Berekeningen!AI$5)*Instellingen!K13,"") ->  | AJ10: 0.15 | AK10: =SUMIFS(Instellingen!E13:K13,Berekeningen!AC10:AI10,">0") -> 0.2 | AL10: 75% | AM10: 2 | AN10: C
C11: =IF(Instellingen!C14="","",Instellingen!C14) -> Spaans | D11: 50% | AC11: =IFERROR(AVERAGEIFS(tblKlassecijfers[Score],tblKlassecijfers[Les],Berekeningen!$C11,tblKlassecijfers[Type],Berekeningen!AC$5)*Instellingen!E14,"") -> 0.05 | AD11: =IFERROR(AVERAGEIFS(tblKlassecijfers[Score],tblKlassecijfers[Les],Berekeningen!$C11,tblKlassecijfers[Type],Berekeningen!AD$5)*Instellingen!F14,"") ->  | AE11: =IFERROR(AVERAGEIFS(tblKlassecijfers[Score],tblKlassecijfers[Les],Berekeningen!$C11,tblKlassecijfers[Type],Berekeningen!AE$5)*Instellingen!G14,"") ->  | AF11: =IFERROR(AVERAGEIFS(tblKlassecijfers[Score],tblKlassecijfers[Les],Berekeningen!$C11,tblKlassecijfers[Type],Berekeningen!AF$5)*Instellingen!H14,"") ->  | AG11: =IFERROR(AVERAGEIFS(tblKlassecijfers[Score],tblKlassecijfers[Les],Berekeningen!$C11,tblKlassecijfers[Type],Berekeningen!AG$5)*Instellingen!I14,"") ->  | AH11: =IFERROR(AVERAGEIFS(tblKlassecijfers[Score],tblKlassecijfers[Les],Berekeningen!$C11,tblKlassecijfers[Type],Berekeningen!AH$5)*Instellingen!J14,"") ->  | AI11: =IFERROR(AVERAGEIFS(tblKlassecijfers[Score],tblKlassecijfers[Les],Berekeningen!$C11,tblKlassecijfers[Type],Berekeningen!AI$5)*Instellingen!K14,"") ->  | AJ11: 0.05 | AK11: =SUMIFS(Instellingen!E14:K14,Berekeningen!AC11:AI11,">0") -> 0.1 | AL11: 50% | AM11: 0 | AN11: F
C12: =IF(Instellingen!C15="","",Instellingen!C15) -> Samenstelling | D12: 95% | AC12: =IFERROR(AVERAGEIFS(tblKlassecijfers[Score],tblKlassecijfers[Les],Berekeningen!$C12,tblKlassecijfers[Type],Berekeningen!AC$5)*Instellingen!E15,"") ->  | AD12: =IFERROR(AVERAGEIFS(tblKlassecijfers[Score],tblKlassecijfers[Les],Berekeningen!$C12,tblKlassecijfers[Type],Berekeningen!AD$5)*Instellingen!F15,"") -> 0.1425 | AE12: =IFERROR(AVERAGEIFS(tblKlassecijfers[Score],tblKlassecijfers[Les],Berekeningen!$C12,tblKlassecijfers[Type],Berekeningen!AE$5)*Instellingen!G15,"") ->  | AF12: =IFERROR(AVERAGEIFS(tblKlassecijfers[Score],tblKlassecijfers[Les],Berekeningen!$C12,tblKlassecijfers[Type],Berekeningen!AF$5)*Instellingen!H15,"") ->  | AG12: =IFERROR(AVERAGEIFS(tblKlassecijfers[Score],tblKlassecijfers[Les],Berekeningen!$C12,tblKlassecijfers[Type],Berekeningen!AG$5)*Instellingen!I15,"") ->  | AH12: =IFERROR(AVERAGEIFS(tblKlassecijfers[Score],tblKlassecijfers[Les],Berekeningen!$C12,tblKlassecijfers[Type],Berekeningen!AH$5)*Instellingen!J15,"") ->  | AI12: =IFERROR(AVERAGEIFS(tblKlassecijfers[Score],tblKlassecijfers[Les],Berekeningen!$C12,tblKlassecijfers[Type],Berekeningen!AI$5)*Instellingen!K15,"") ->  | AJ12: 0.1425 | AK12: =SUMIFS(Instellingen!E15:K15,Berekeningen!AC12:AI12,">0") -> 0.15 | AL12: 95% | AM12: 4 | AN12: A
C13: =IF(Instellingen!C16="","",Instellingen!C16) ->  | AC13: =IFERROR(AVERAGEIFS(tblKlassecijfers[Score],tblKlassecijfers[Les],Berekeningen!$C13,tblKlassecijfers[Type],Berekeningen!AC$5)*Instellingen!E16,"") ->  | AD13: =IFERROR(AVERAGEIFS(tblKlassecijfers[Score],tblKlassecijfers[Les],Berekeningen!$C13,tblKlassecijfers[Type],Berekeningen!AD$5)*Instellingen!F16,"") ->  | AE13: =IFERROR(AVERAGEIFS(tblKlassecijfers[Score],tblKlassecijfers[Les],Berekeningen!$C13,tblKlassecijfers[Type],Berekeningen!AE$5)*Instellingen!G16,"") ->  | AF13: =IFERROR(AVERAGEIFS(tblKlassecijfers[Score],tblKlassecijfers[Les],Berekeningen!$C13,tblKlassecijfers[Type],Berekeningen!AF$5)*Instellingen!H16,"") ->  | AG13: =IFERROR(AVERAGEIFS(tblKlassecijfers[Score],tblKlassecijfers[Les],Berekeningen!$C13,tblKlassecijfers[Type],Berekeningen!AG$5)*Instellingen!I16,"") ->  | AH13: =IFERROR(AVERAGEIFS(tblKlassecijfers[Score],tblKlassecijfers[Les],Berekeningen!$C13,tblKlassecijfers[Type],Berekeningen!AH$5)*Instellingen!J16,"") ->  | AI13: =IFERROR(AVERAGEIFS(tblKlassecijfers[Score],tblKlassecijfers[Les],Berekeningen!$C13,tblKlassecijfers[Type],Berekeningen!AI$5)*Instellingen!K16,"") ->  | AJ13: =SUM(AC13:AI13) -> 0 | AK13: =SUMIFS(Instellingen!E16:K16,Berekeningen!AC13:AI13,">0") -> 0 | AL13: =IFERROR(AJ13/AK13,"") -> 
C14: =IF(Instellingen!C17="","",Instellingen!C17) ->  | AC14: =IFERROR(AVERAGEIFS(tblKlassecijfers[Score],tblKlassecijfers[Les],Berekeningen!$C14,tblKlassecijfers[Type],Berekeningen!AC$5)*Instellingen!E17,"") ->  | AD14: =IFERROR(AVERAGEIFS(tblKlassecijfers[Score],tblKlassecijfers[Les],Berekeningen!$C14,tblKlassecijfers[Type],Berekeningen!AD$5)*Instellingen!F17,"") ->  | AE14: =IFERROR(AVERAGEIFS(tblKlassecijfers[Score],tblKlassecijfers[Les],Berekeningen!$C14,tblKlassecijfers[Type],Berekeningen!AE$5)*Instellingen!G17,"") ->  | AF14: =IFERROR(AVERAGEIFS(tblKlassecijfers[Score],tblKlassecijfers[Les],Berekeningen!$C14,tblKlassecijfers[Type],Berekeningen!AF$5)*Instellingen!H17,"") ->  | AG14: =IFERROR(AVERAGEIFS(tblKlassecijfers[Score],tblKlassecijfers[Les],Berekeningen!$C14,tblKlassecijfers[Type],Berekeningen!AG$5)*Instellingen!I17,"") ->  | AH14: =IFERROR(AVERAGEIFS(tblKlassecijfers[Score],tblKlassecijfers[Les],Berekeningen!$C14,tblKlassecijfers[Type],Berekeningen!AH$5)*Instellingen!J17,"") ->  | AI14: =IFERROR(AVERAGEIFS(tblKlassecijfers[Score],tblKlassecijfers[Les],Berekeningen!$C14,tblKlassecijfers[Type],Berekeningen!AI$5)*Instellingen!K17,"") ->  | AJ14: 0 | AK14: =SUMIFS(Instellingen!E17:K17,Berekeningen!AC14:AI14,">0") -> 0
C15: =IF(Instellingen!C18="","",Instellingen!C18) ->  | AC15: =IFERROR(AVERAGEIFS(tblKlassecijfers[Score],tblKlassecijfers[Les],Berekeningen!$C15,tblKlassecijfers[Type],Berekeningen!AC$5)*Instellingen!E18,"") ->  | AD15: =IFERROR(AVERAGEIFS(tblKlassecijfers[Score],tblKlassecijfers[Les],Berekeningen!$C15,tblKlassecijfers[Type],Berekeningen!AD$5)*Instellingen!F18,"") ->  | AE15: =IFERROR(AVERAGEIFS(tblKlassecijfers[Score],tblKlassecijfers[Les],Berekeningen!$C15,tblKlassecijfers[Type],Berekeningen!AE$5)*Instellingen!G18,"") ->  | AF15: =IFERROR(AVERAGEIFS(tblKlassecijfers[Score],tblKlassecijfers[Les],Berekeningen!$C15,tblKlassecijfers[Type],Berekeningen!AF$5)*Instellingen!H18,"") ->  | AG15: =IFERROR(AVERAGEIFS(tblKlassecijfers[Score],tblKlassecijfers[Les],Berekeningen!$C15,tblKlassecijfers[Type],Berekeningen!AG$5)*Instellingen!I18,"") ->  | AH15: =IFERROR(AVERAGEIFS(tblKlassecijfers[Score],tblKlassecijfers[Les],Berekeningen!$C15,tblKlassecijfers[Type],Berekeningen!AH$5)*Instellingen!J18,"") ->  | AI15: =IFERROR(AVERAGEIFS(tblKlassecijfers[Score],tblKlassecijfers[Les],Berekeningen!$C15,tblKlassecijfers[Type],Berekeningen!AI$5)*Instellingen!K18,"") ->  | AJ15: 0 | AK15: =SUMIFS(Instellingen!E18:K18,Berekeningen!AC15:AI15,">0") -> 0
C16: =IF(Instellingen!C19="","",Instellingen!C19) ->  | AC16: =IFERROR(AVERAGEIFS(tblKlassecijfers[Score],tblKlassecijfers[Les],Berekeningen!$C16,tblKlassecijfers[Type],Berekeningen!AC$5)*Instellingen!E19,"") ->  | AD16: =IFERROR(AVERAGEIFS(tblKlassecijfers[Score],tblKlassecijfers[Les],Berekeningen!$C16,tblKlassecijfers[Type],Berekeningen!AD$5)*Instellingen!F19,"") ->  | AE16: =IFERROR(AVERAGEIFS(tblKlassecijfers[Score],tblKlassecijfers[Les],Berekeningen!$C16,tblKlassecijfers[Type],Berekeningen!AE$5)*Instellingen!G19,"") ->  | AF16: =IFERROR(AVERAGEIFS(tblKlassecijfers[Score],tblKlassecijfers[Les],Berekeningen!$C16,tblKlassecijfers[Type],Berekeningen!AF$5)*Instellingen!H19,"") ->  | AG16: =IFERROR(AVERAGEIFS(tblKlassecijfers[Score],tblKlassecijfers[Les],Berekeningen!$C16,tblKlassecijfers[Type],Berekeningen!AG$5)*Instellingen!I19,"") ->  | AH16: =IFERROR(AVERAGEIFS(tblKlassecijfers[Score],tblKlassecijfers[Les],Berekeningen!$C16,tblKlassecijfers[Type],Berekeningen!AH$5)*Instellingen!J19,"") ->  | AI16: =IFERROR(AVERAGEIFS(tblKlassecijfers[Score],tblKlassecijfers[Les],Berekeningen!$C16,tblKlassecijfers[Type],Berekeningen!AI$5)*Instellingen!K19,"") ->  | AJ16: 0 | AK16: =SUMIFS(Instellingen!E19:K19,Berekeningen!AC16:AI16,">0") -> 0
C17: =IF(Instellingen!C20="","",Instellingen!C20) ->  | AC17: =IFERROR(AVERAGEIFS(tblKlassecijfers[Score],tblKlassecijfers[Les],Berekeningen!$C17,tblKlassecijfers[Type],Berekeningen!AC$5)*Instellingen!E20,"") ->  | AD17: =IFERROR(AVERAGEIFS(tblKlassecijfers[Score],tblKlassecijfers[Les],Berekeningen!$C17,tblKlassecijfers[Type],Berekeningen!AD$5)*Instellingen!F20,"") ->  | AE17: =IFERROR(AVERAGEIFS(tblKlassecijfers[Score],tblKlassecijfers[Les],Berekeningen!$C17,tblKlassecijfers[Type],Berekeningen!AE$5)*Instellingen!G20,"") ->  | AF17: =IFERROR(AVERAGEIFS(tblKlassecijfers[Score],tblKlassecijfers[Les],Berekeningen!$C17,tblKlassecijfers[Type],Berekeningen!AF$5)*Instellingen!H20,"") ->  | AG17: =IFERROR(AVERAGEIFS(tblKlassecijfers[Score],tblKlassecijfers[Les],Berekeningen!$C17,tblKlassecijfers[Type],Berekeningen!AG$5)*Instellingen!I20,"") ->  | AH17: =IFERROR(AVERAGEIFS(tblKlassecijfers[Score],tblKlassecijfers[Les],Berekeningen!$C17,tblKlassecijfers[Type],Berekeningen!AH$5)*Instellingen!J20,"") ->  | AI17: =IFERROR(AVERAGEIFS(tblKlassecijfers[Score],tblKlassecijfers[Les],Berekeningen!$C17,tblKlassecijfers[Type],Berekeningen!AI$5)*Instellingen!K20,"") ->  | AJ17: 0 | AK17: =SUMIFS(Instellingen!E20:K20,Berekeningen!AC17:AI17,">0") -> 0
C18: =IF(Instellingen!C21="","",Instellingen!C21) ->  | AC18: =IFERROR(AVERAGEIFS(tblKlassecijfers[Score],tblKlassecijfers[Les],Berekeningen!$C18,tblKlassecijfers[Type],Berekeningen!AC$5)*Instellingen!E21,"") ->  | AD18: =IFERROR(AVERAGEIFS(tblKlassecijfers[Score],tblKlassecijfers[Les],Berekeningen!$C18,tblKlassecijfers[Type],Berekeningen!AD$5)*Instellingen!F21,"") ->  | AE18: =IFERROR(AVERAGEIFS(tblKlassecijfers[Score],tblKlassecijfers[Les],Berekeningen!$C18,tblKlassecijfers[Type],Berekeningen!AE$5)*Instellingen!G21,"") ->  | AF18: =IFERROR(AVERAGEIFS(tblKlassecijfers[Score],tblKlassecijfers[Les],Berekeningen!$C18,tblKlassecijfers[Type],Berekeningen!AF$5)*Instellingen!H21,"") ->  | AG18: =IFERROR(AVERAGEIFS(tblKlassecijfers[Score],tblKlassecijfers[Les],Berekeningen!$C18,tblKlassecijfers[Type],Berekeningen!AG$5)*Instellingen!I21,"") ->  | AH18: =IFERROR(AVERAGEIFS(tblKlassecijfers[Score],tblKlassecijfers[Les],Berekeningen!$C18,tblKlassecijfers[Type],Berekeningen!AH$5)*Instellingen!J21,"") ->  | AI18: =IFERROR(AVERAGEIFS(tblKlassecijfers[Score],tblKlassecijfers[Les],Berekeningen!$C18,tblKlassecijfers[Type],Berekeningen!AI$5)*Instellingen!K21,"") ->  | AJ18: 0 | AK18: =SUMIFS(Instellingen!E21:K21,Berekeningen!AC18:AI18,">0") -> 0
C19: =IF(Instellingen!C22="","",Instellingen!C22) ->  | AC19: =IFERROR(AVERAGEIFS(tblKlassecijfers[Score],tblKlassecijfers[Les],Berekeningen!$C19,tblKlassecijfers[Type],Berekeningen!AC$5)*Instellingen!E22,"") ->  | AD19: =IFERROR(AVERAGEIFS(tblKlassecijfers[Score],tblKlassecijfers[Les],Berekeningen!$C19,tblKlassecijfers[Type],Berekeningen!AD$5)*Instellingen!F22,"") ->  | AE19: =IFERROR(AVERAGEIFS(tblKlassecijfers[Score],tblKlassecijfers[Les],Berekeningen!$C19,tblKlassecijfers[Type],Berekeningen!AE$5)*Instellingen!G22,"") ->  | AF19: =IFERROR(AVERAGEIFS(tblKlassecijfers[Score],tblKlassecijfers[Les],Berekeningen!$C19,tblKlassecijfers[Type],Berekeningen!AF$5)*Instellingen!H22,"") ->  | AG19: =IFERROR(AVERAGEIFS(tblKlassecijfers[Score],tblKlassecijfers[Les],Berekeningen!$C19,tblKlassecijfers[Type],Berekeningen!AG$5)*Instellingen!I22,"") ->  | AH19: =IFERROR(AVERAGEIFS(tblKlassecijfers[Score],tblKlassecijfers[Les],Berekeningen!$C19,tblKlassecijfers[Type],Berekeningen!AH$5)*Instellingen!J22,"") ->  | AI19: =IFERROR(AVERAGEIFS(tblKlassecijfers[Score],tblKlassecijfers[Les],Berekeningen!$C19,tblKlassecijfers[Type],Berekeningen!AI$5)*Instellingen!K22,"") ->  | AJ19: 0 | AK19: =SUMIFS(Instellingen!E22:K22,Berekeningen!AC19:AI19,">0") -> 0
C20: =IF(Instellingen!C23="","",Instellingen!C23) ->  | AC20: =IFERROR(AVERAGEIFS(tblKlassecijfers[Score],tblKlassecijfers[Les],Berekeningen!$C20,tblKlassecijfers[Type],Berekeningen!AC$5)*Instellingen!E23,"") ->  | AD20: =IFERROR(AVERAGEIFS(tblKlassecijfers[Score],tblKlassecijfers[Les],Berekeningen!$C20,tblKlassecijfers[Type],Berekeningen!AD$5)*Instellingen!F23,"") ->  | AE20: =IFERROR(AVERAGEIFS(tblKlassecijfers[Score],tblKlassecijfers[Les],Berekeningen!$C20,tblKlassecijfers[Type],Berekeningen!AE$5)*Instellingen!G23,"") ->  | AF20: =IFERROR(AVERAGEIFS(tblKlassecijfers[Score],tblKlassecijfers[Les],Berekeningen!$C20,tblKlassecijfers[Type],Berekeningen!AF$5)*Instellingen!H23,"") ->  | AG20: =IFERROR(AVERAGEIFS(tblKlassecijfers[Score],tblKlassecijfers[Les],Berekeningen!$C20,tblKlassecijfers[Type],Berekeningen!AG$5)*Instellingen!I23,"") ->  | AH20: =IFERROR(AVERAGEIFS(tblKlassecijfers[Score],tblKlassecijfers[Les],Berekeningen!$C20,tblKlassecijfers[Type],Berekeningen!AH$5)*Instellingen!J23,"") ->  | AI20: =IFERROR(AVERAGEIFS(tblKlassecijfers[Score],tblKlassecijfers[Les],Berekeningen!$C20,tblKlassecijfers[Type],Berekeningen!AI$5)*Instellingen!K23,"") ->  | AJ20: 0 | AK20: =SUMIFS(Instellingen!E23:K23,Berekeningen!AC20:AI20,">0") -> 0
C21: =IF(Instellingen!C24="","",Instellingen!C24) ->  | AC21: =IFERROR(AVERAGEIFS(tblKlassecijfers[Score],tblKlassecijfers[Les],Berekeningen!$C21,tblKlassecijfers[Type],Berekeningen!AC$5)*Instellingen!E24,"") ->  | AD21: =IFERROR(AVERAGEIFS(tblKlassecijfers[Score],tblKlassecijfers[Les],Berekeningen!$C21,tblKlassecijfers[Type],Berekeningen!AD$5)*Instellingen!F24,"") ->  | AE21: =IFERROR(AVERAGEIFS(tblKlassecijfers[Score],tblKlassecijfers[Les],Berekeningen!$C21,tblKlassecijfers[Type],Berekeningen!AE$5)*Instellingen!G24,"") ->  | AF21: =IFERROR(AVERAGEIFS(tblKlassecijfers[Score],tblKlassecijfers[Les],Berekeningen!$C21,tblKlassecijfers[Type],Berekeningen!AF$5)*Instellingen!H24,"") ->  | AG21: =IFERROR(AVERAGEIFS(tblKlassecijfers[Score],tblKlassecijfers[Les],Berekeningen!$C21,tblKlassecijfers[Type],Berekeningen!AG$5)*Instellingen!I24,"") ->  | AH21: =IFERROR(AVERAGEIFS(tblKlassecijfers[Score],tblKlassecijfers[Les],Berekeningen!$C21,tblKlassecijfers[Type],Berekeningen!AH$5)*Instellingen!J24,"") ->  | AI21: =IFERROR(AVERAGEIFS(tblKlassecijfers[Score],tblKlassecijfers[Les],Berekeningen!$C21,tblKlassecijfers[Type],Berekeningen!AI$5)*Instellingen!K24,"") ->  | AJ21: 0 | AK21: =SUMIFS(Instellingen!E24:K24,Berekeningen!AC21:AI21,">0") -> 0
C22: =IF(Instellingen!C25="","",Instellingen!C25) ->  | AC22: =IFERROR(AVERAGEIFS(tblKlassecijfers[Score],tblKlassecijfers[Les],Berekeningen!$C22,tblKlassecijfers[Type],Berekeningen!AC$5)*Instellingen!E25,"") ->  | AD22: =IFERROR(AVERAGEIFS(tblKlassecijfers[Score],tblKlassecijfers[Les],Berekeningen!$C22,tblKlassecijfers[Type],Berekeningen!AD$5)*Instellingen!F25,"") ->  | AE22: =IFERROR(AVERAGEIFS(tblKlassecijfers[Score],tblKlassecijfers[Les],Berekeningen!$C22,tblKlassecijfers[Type],Berekeningen!AE$5)*Instellingen!G25,"") ->  | AF22: =IFERROR(AVERAGEIFS(tblKlassecijfers[Score],tblKlassecijfers[Les],Berekeningen!$C22,tblKlassecijfers[Type],Berekeningen!AF$5)*Instellingen!H25,"") ->  | AG22: =IFERROR(AVERAGEIFS(tblKlassecijfers[Score],tblKlassecijfers[Les],Berekeningen!$C22,tblKlassecijfers[Type],Berekeningen!AG$5)*Instellingen!I25,"") ->  | AH22: =IFERROR(AVERAGEIFS(tblKlassecijfers[Score],tblKlassecijfers[Les],Berekeningen!$C22,tblKlassecijfers[Type],Berekeningen!AH$5)*Instellingen!J25,"") ->  | AI22: =IFERROR(AVERAGEIFS(tblKlassecijfers[Score],tblKlassecijfers[Les],Berekeningen!$C22,tblKlassecijfers[Type],Berekeningen!AI$5)*Instellingen!K25,"") ->  | AJ22: 0 | AK22: =SUMIFS(Instellingen!E25:K25,Berekeningen!AC22:AI22,">0") -> 0
C23: =IF(Instellingen!C26="","",Instellingen!C26) ->  | AC23: =IFERROR(AVERAGEIFS(tblKlassecijfers[Score],tblKlassecijfers[Les],Berekeningen!$C23,tblKlassecijfers[Type],Berekeningen!AC$5)*Instellingen!E26,"") ->  | AD23: =IFERROR(AVERAGEIFS(tblKlassecijfers[Score],tblKlassecijfers[Les],Berekeningen!$C23,tblKlassecijfers[Type],Berekeningen!AD$5)*Instellingen!F26,"") ->  | AE23: =IFERROR(AVERAGEIFS(tblKlassecijfers[Score],tblKlassecijfers[Les],Berekeningen!$C23,tblKlassecijfers[Type],Berekeningen!AE$5)*Instellingen!G26,"") ->  | AF23: =IFERROR(AVERAGEIFS(tblKlassecijfers[Score],tblKlassecijfers[Les],Berekeningen!$C23,tblKlassecijfers[Type],Berekeningen!AF$5)*Instellingen!H26,"") ->  | AG23: =IFERROR(AVERAGEIFS(tblKlassecijfers[Score],tblKlassecijfers[Les],Berekeningen!$C23,tblKlassecijfers[Type],Berekeningen!AG$5)*Instellingen!I26,"") ->  | AH23: =IFERROR(AVERAGEIFS(tblKlassecijfers[Score],tblKlassecijfers[Les],Berekeningen!$C23,tblKlassecijfers[Type],Berekeningen!AH$5)*Instellingen!J26,"") ->  | AI23: =IFERROR(AVERAGEIFS(tblKlassecijfers[Score],tblKlassecijfers[Les],Berekeningen!$C23,tblKlassecijfers[Type],Berekeningen!AI$5)*Instellingen!K26,"") ->  | AJ23: 0 | AK23: =SUMIFS(Instellingen!E26:K26,Berekeningen!AC23:AI23,">0") -> 0
C24: =IF(Instellingen!C27="","",Instellingen!C27) ->  | AC24: =IFERROR(AVERAGEIFS(tblKlassecijfers[Score],tblKlassecijfers[Les],Berekeningen!$C24,tblKlassecijfers[Type],Berekeningen!AC$5)*Instellingen!E27,"") ->  | AD24: =IFERROR(AVERAGEIFS(tblKlassecijfers[Score],tblKlassecijfers[Les],Berekeningen!$C24,tblKlassecijfers[Type],Berekeningen!AD$5)*Instellingen!F27,"") ->  | AE24: =IFERROR(AVERAGEIFS(tblKlassecijfers[Score],tblKlassecijfers[Les],Berekeningen!$C24,tblKlassecijfers[Type],Berekeningen!AE$5)*Instellingen!G27,"") ->  | AF24: =IFERROR(AVERAGEIFS(tblKlassecijfers[Score],tblKlassecijfers[Les],Berekeningen!$C24,tblKlassecijfers[Type],Berekeningen!AF$5)*Instellingen!H27,"") ->  | AG24: =IFERROR(AVERAGEIFS(tblKlassecijfers[Score],tblKlassecijfers[Les],Berekeningen!$C24,tblKlassecijfers[Type],Berekeningen!AG$5)*Instellingen!I27,"") ->  | AH24: =IFERROR(AVERAGEIFS(tblKlassecijfers[Score],tblKlassecijfers[Les],Berekeningen!$C24,tblKlassecijfers[Type],Berekeningen!AH$5)*Instellingen!J27,"") ->  | AI24: =IFERROR(AVERAGEIFS(tblKlassecijfers[Score],tblKlassecijfers[Les],Berekeningen!$C24,tblKlassecijfers[Type],Berekeningen!AI$5)*Instellingen!K27,"") ->  | AJ24: 0 | AK24: =SUMIFS(Instellingen!E27:K27,Berekeningen!AC24:AI24,">0") -> 0
C25: =IF(Instellingen!C28="","",Instellingen!C28) ->  | AC25: =IFERROR(AVERAGEIFS(tblKlassecijfers[Score],tblKlassecijfers[Les],Berekeningen!$C25,tblKlassecijfers[Type],Berekeningen!AC$5)*Instellingen!E28,"") ->  | AD25: =IFERROR(AVERAGEIFS(tblKlassecijfers[Score],tblKlassecijfers[Les],Berekeningen!$C25,tblKlassecijfers[Type],Berekeningen!AD$5)*Instellingen!F28,"") ->  | AE25: =IFERROR(AVERAGEIFS(tblKlassecijfers[Score],tblKlassecijfers[Les],Berekeningen!$C25,tblKlassecijfers[Type],Berekeningen!AE$5)*Instellingen!G28,"") ->  | AF25: =IFERROR(AVERAGEIFS(tblKlassecijfers[Score],tblKlassecijfers[Les],Berekeningen!$C25,tblKlassecijfers[Type],Berekeningen!AF$5)*Instellingen!H28,"") ->  | AG25: =IFERROR(AVERAGEIFS(tblKlassecijfers[Score],tblKlassecijfers[Les],Berekeningen!$C25,tblKlassecijfers[Type],Berekeningen!AG$5)*Instellingen!I28,"") ->  | AH25: =IFERROR(AVERAGEIFS(tblKlassecijfers[Score],tblKlassecijfers[Les],Berekeningen!$C25,tblKlassecijfers[Type],Berekeningen!AH$5)*Instellingen!J28,"") ->  | AI25: =IFERROR(AVERAGEIFS(tblKlassecijfers[Score],tblKlassecijfers[Les],Berekeningen!$C25,tblKlassecijfers[Type],Berekeningen!AI$5)*Instellingen!K28,"") ->  | AJ25: 0 | AK25: =SUMIFS(Instellingen!E28:K28,Berekeningen!AC25:AI25,">0") -> 0
C26: =IF(Instellingen!C29="","",Instellingen!C29) ->  | AC26: =IFERROR(AVERAGEIFS(tblKlassecijfers[Score],tblKlassecijfers[Les],Berekeningen!$C26,tblKlassecijfers[Type],Berekeningen!AC$5)*Instellingen!E29,"") ->  | AD26: =IFERROR(AVERAGEIFS(tblKlassecijfers[Score],tblKlassecijfers[Les],Berekeningen!$C26,tblKlassecijfers[Type],Berekeningen!AD$5)*Instellingen!F29,"") ->  | AE26: =IFERROR(AVERAGEIFS(tblKlassecijfers[Score],tblKlassecijfers[Les],Berekeningen!$C26,tblKlassecijfers[Type],Berekeningen!AE$5)*Instellingen!G29,"") ->  | AF26: =IFERROR(AVERAGEIFS(tblKlassecijfers[Score],tblKlassecijfers[Les],Berekeningen!$C26,tblKlassecijfers[Type],Berekeningen!AF$5)*Instellingen!H29,"") ->  | AG26: =IFERROR(AVERAGEIFS(tblKlassecijfers[Score],tblKlassecijfers[Les],Berekeningen!$C26,tblKlassecijfers[Type],Berekeningen!AG$5)*Instellingen!I29,"") ->  | AH26: =IFERROR(AVERAGEIFS(tblKlassecijfers[Score],tblKlassecijfers[Les],Berekeningen!$C26,tblKlassecijfers[Type],Berekeningen!AH$5)*Instellingen!J29,"") ->  | AI26: =IFERROR(AVERAGEIFS(tblKlassecijfers[Score],tblKlassecijfers[Les],Berekeningen!$C26,tblKlassecijfers[Type],Berekeningen!AI$5)*Instellingen!K29,"") ->  | AJ26: 0 | AK26: =SUMIFS(Instellingen!E29:K29,Berekeningen!AC26:AI26,">0") -> 0
C27: =IF(Instellingen!C30="","",Instellingen!C30) ->  | AC27: =IFERROR(AVERAGEIFS(tblKlassecijfers[Score],tblKlassecijfers[Les],Berekeningen!$C27,tblKlassecijfers[Type],Berekeningen!AC$5)*Instellingen!E30,"") ->  | AD27: =IFERROR(AVERAGEIFS(tblKlassecijfers[Score],tblKlassecijfers[Les],Berekeningen!$C27,tblKlassecijfers[Type],Berekeningen!AD$5)*Instellingen!F30,"") ->  | AE27: =IFERROR(AVERAGEIFS(tblKlassecijfers[Score],tblKlassecijfers[Les],Berekeningen!$C27,tblKlassecijfers[Type],Berekeningen!AE$5)*Instellingen!G30,"") ->  | AF27: =IFERROR(AVERAGEIFS(tblKlassecijfers[Score],tblKlassecijfers[Les],Berekeningen!$C27,tblKlassecijfers[Type],Berekeningen!AF$5)*Instellingen!H30,"") ->  | AG27: =IFERROR(AVERAGEIFS(tblKlassecijfers[Score],tblKlassecijfers[Les],Berekeningen!$C27,tblKlassecijfers[Type],Berekeningen!AG$5)*Instellingen!I30,"") ->  | AH27: =IFERROR(AVERAGEIFS(tblKlassecijfers[Score],tblKlassecijfers[Les],Berekeningen!$C27,tblKlassecijfers[Type],Berekeningen!AH$5)*Instellingen!J30,"") ->  | AI27: =IFERROR(AVERAGEIFS(tblKlassecijfers[Score],tblKlassecijfers[Les],Berekeningen!$C27,tblKlassecijfers[Type],Berekeningen!AI$5)*Instellingen!K30,"") ->  | AJ27: 0 | AK27: =SUMIFS(Instellingen!E30:K30,Berekeningen!AC27:AI27,">0") -> 0
C28: =IF(Instellingen!C31="","",Instellingen!C31) ->  | AC28: =IFERROR(AVERAGEIFS(tblKlassecijfers[Score],tblKlassecijfers[Les],Berekeningen!$C28,tblKlassecijfers[Type],Berekeningen!AC$5)*Instellingen!E31,"") ->  | AD28: =IFERROR(AVERAGEIFS(tblKlassecijfers[Score],tblKlassecijfers[Les],Berekeningen!$C28,tblKlassecijfers[Type],Berekeningen!AD$5)*Instellingen!F31,"") ->  | AE28: =IFERROR(AVERAGEIFS(tblKlassecijfers[Score],tblKlassecijfers[Les],Berekeningen!$C28,tblKlassecijfers[Type],Berekeningen!AE$5)*Instellingen!G31,"") ->  | AF28: =IFERROR(AVERAGEIFS(tblKlassecijfers[Score],tblKlassecijfers[Les],Berekeningen!$C28,tblKlassecijfers[Type],Berekeningen!AF$5)*Instellingen!H31,"") ->  | AG28: =IFERROR(AVERAGEIFS(tblKlassecijfers[Score],tblKlassecijfers[Les],Berekeningen!$C28,tblKlassecijfers[Type],Berekeningen!AG$5)*Instellingen!I31,"") ->  | AH28: =IFERROR(AVERAGEIFS(tblKlassecijfers[Score],tblKlassecijfers[Les],Berekeningen!$C28,tblKlassecijfers[Type],Berekeningen!AH$5)*Instellingen!J31,"") ->  | AI28: =IFERROR(AVERAGEIFS(tblKlassecijfers[Score],tblKlassecijfers[Les],Berekeningen!$C28,tblKlassecijfers[Type],Berekeningen!AI$5)*Instellingen!K31,"") ->  | AJ28: 0 | AK28: =SUMIFS(Instellingen!E31:K31,Berekeningen!AC28:AI28,">0") -> 0
C29: =IF(Instellingen!C32="","",Instellingen!C32) ->  | AC29: =IFERROR(AVERAGEIFS(tblKlassecijfers[Score],tblKlassecijfers[Les],Berekeningen!$C29,tblKlassecijfers[Type],Berekeningen!AC$5)*Instellingen!E32,"") ->  | AD29: =IFERROR(AVERAGEIFS(tblKlassecijfers[Score],tblKlassecijfers[Les],Berekeningen!$C29,tblKlassecijfers[Type],Berekeningen!AD$5)*Instellingen!F32,"") ->  | AE29: =IFERROR(AVERAGEIFS(tblKlassecijfers[Score],tblKlassecijfers[Les],Berekeningen!$C29,tblKlassecijfers[Type],Berekeningen!AE$5)*Instellingen!G32,"") ->  | AF29: =IFERROR(AVERAGEIFS(tblKlassecijfers[Score],tblKlassecijfers[Les],Berekeningen!$C29,tblKlassecijfers[Type],Berekeningen!AF$5)*Instellingen!H32,"") ->  | AG29: =IFERROR(AVERAGEIFS(tblKlassecijfers[Score],tblKlassecijfers[Les],Berekeningen!$C29,tblKlassecijfers[Type],Berekeningen!AG$5)*Instellingen!I32,"") ->  | AH29: =IFERROR(AVERAGEIFS(tblKlassecijfers[Score],tblKlassecijfers[Les],Berekeningen!$C29,tblKlassecijfers[Type],Berekeningen!AH$5)*Instellingen!J32,"") ->  | AI29: =IFERROR(AVERAGEIFS(tblKlassecijfers[Score],tblKlassecijfers[Les],Berekeningen!$C29,tblKlassecijfers[Type],Berekeningen!AI$5)*Instellingen!K32,"") ->  | AJ29: 0 | AK29: =SUMIFS(Instellingen!E32:K32,Berekeningen!AC29:AI29,">0") -> 0
C30: =IF(Instellingen!C33="","",Instellingen!C33) ->  | AC30: =IFERROR(AVERAGEIFS(tblKlassecijfers[Score],tblKlassecijfers[Les],Berekeningen!$C30,tblKlassecijfers[Type],Berekeningen!AC$5)*Instellingen!E33,"") ->  | AD30: =IFERROR(AVERAGEIFS(tblKlassecijfers[Score],tblKlassecijfers[Les],Berekeningen!$C30,tblKlassecijfers[Type],Berekeningen!AD$5)*Instellingen!F33,"") ->  | AE30: =IFERROR(AVERAGEIFS(tblKlassecijfers[Score],tblKlassecijfers[Les],Berekeningen!$C30,tblKlassecijfers[Type],Berekeningen!AE$5)*Instellingen!G33,"") ->  | AF30: =IFERROR(AVERAGEIFS(tblKlassecijfers[Score],tblKlassecijfers[Les],Berekeningen!$C30,tblKlassecijfers[Type],Berekeningen!AF$5)*Instellingen!H33,"") ->  | AG30: =IFERROR(AVERAGEIFS(tblKlassecijfers[Score],tblKlassecijfers[Les],Berekeningen!$C30,tblKlassecijfers[Type],Berekeningen!AG$5)*Instellingen!I33,"") ->  | AH30: =IFERROR(AVERAGEIFS(tblKlassecijfers[Score],tblKlassecijfers[Les],Berekeningen!$C30,tblKlassecijfers[Type],Berekeningen!AH$5)*Instellingen!J33,"") ->  | AI30: =IFERROR(AVERAGEIFS(tblKlassecijfers[Score],tblKlassecijfers[Les],Berekeningen!$C30,tblKlassecijfers[Type],Berekeningen!AI$5)*Instellingen!K33,"") ->  | AJ30: 0 | AK30: =SUMIFS(Instellingen!E33:K33,Berekeningen!AC30:AI30,">0") -> 0
B33: 1 | C33: ='Score bijhouden'!C4&COUNTIF('Score bijhouden'!$C$4:C4,'Score bijhouden'!C4) -> Modern Frans1
B34: 2 | C34: ='Score bijhouden'!C5&COUNTIF('Score bijhouden'!$C$4:C5,'Score bijhouden'!C5) -> Geavanceerde programmering in Java1
B35: 3 | C35: ='Score bijhouden'!C6&COUNTIF('Score bijhouden'!$C$4:C6,'Score bijhouden'!C6) -> Spaans1
B36: 4 | C36: ='Score bijhouden'!C7&COUNTIF('Score bijhouden'!$C$4:C7,'Score bijhouden'!C7) -> Theoretische natuurkunde1
B37: 5 | C37: ='Score bijhouden'!C8&COUNTIF('Score bijhouden'!$C$4:C8,'Score bijhouden'!C8) -> Modern Frans2
B38: 6 | C38: ='Score bijhouden'!C9&COUNTIF('Score bijhouden'!$C$4:C9,'Score bijhouden'!C9) -> Modern Frans3
B39: 7 | C39: ='Score bijhouden'!C10&COUNTIF('Score bijhouden'!$C$4:C10,'Score bijhouden'!C10) -> Samenstelling1
B40: 8 | C40: ='Score bijhouden'!C11&COUNTIF('Score bijhouden'!$C$4:C11,'Score bijhouden'!C11) -> Wiskunde 11
B41: 9 | C41: ='Score bijhouden'!C12&COUNTIF('Score bijhouden'!$C$4:C12,'Score bijhouden'!C12) -> Wiskunde 21
B42: 10 | C42: ='Score bijhouden'!C13&COUNTIF('Score bijhouden'!$C$4:C13,'Score bijhouden'!C13) -> Wiskunde 12
B43: 11 | C43: ='Score bijhouden'!C14&COUNTIF('Score bijhouden'!$C$4:C14,'Score bijhouden'!C14) -> Wiskunde 22
B44: 12 | C44: ='Score bijhouden'!C15&COUNTIF('Score bijhouden'!$C$4:C15,'Score bijhouden'!C15) -> 0
B45: 13 | C45: ='Score bijhouden'!C16&COUNTIF('Score bijhouden'!$C$4:C16,'Score bijhouden'!C16) -> 0
B46: 14 | C46: ='Score bijhouden'!C17&COUNTIF('Score bijhouden'!$C$4:C17,'Score bijhouden'!C17) -> 0
B47: 15 | C47: ='Score bijhouden'!C18&COUNTIF('Score bijhouden'!$C$4:C18,'Score bijhouden'!C18) -> 0
B48: 16 | C48: ='Score bijhouden'!C19&COUNTIF('Score bijhouden'!$C$4:C19,'Score bijhouden'!C19) -> 0
B49: 17 | C49: ='Score bijhouden'!C20&COUNTIF('Score bijhouden'!$C$4:C20,'Score bijhouden'!C20) -> 0
B50: 18 | C50: ='Score bijhouden'!C21&COUNTIF('Score bijhouden'!$C$4:C21,'Score bijhouden'!C21) -> 0
B51: 19 | C51: ='Score bijhouden'!C22&COUNTIF('Score bijhouden'!$C$4:C22,'Score bijhouden'!C22) -> 0
B52: 20 | C52: ='Score bijhouden'!C23&COUNTIF('Score bijhouden'!$C$4:C23,'Score bijhouden'!C23) -> 0
B53: 21 | C53: ='Score bijhouden'!C24&COUNTIF('Score bijhouden'!$C$4:C24,'Score bijhouden'!C24) -> 0
B54: 22 | C54: ='Score bijhouden'!C25&COUNTIF('Score bijhouden'!$C$4:C25,'Score bijhouden'!C25) -> 0
B55: 23 | C55: ='Score bijhouden'!C26&COUNTIF('Score bijhouden'!$C$4:C26,'Score bijhouden'!C26) -> 0
B56: 24 | C56: ='Score bijhouden'!C27&COUNTIF('Score bijhouden'!$C$4:C27,'Score bijhouden'!C27) -> 0
B57: 25 | C57: ='Score bijhouden'!C28&COUNTIF('Score bijhouden'!$C$4:C28,'Score bijhouden'!C28) -> 0
B58: 26 | C58: ='Score bijhouden'!C29&COUNTIF('Score bijhouden'!$C$4:C29,'Score bijhouden'!C29) -> 0
B59: 27 | C59: ='Score bijhouden'!C30&COUNTIF('Score bijhouden'!$C$4:C30,'Score bijhouden'!C30) -> 0
B60: 28 | C60: ='Score bijhouden'!C31&COUNTIF('Score bijhouden'!$C$4:C31,'Score bijhouden'!C31) -> 0
B61: 29 | C61: ='Score bijhouden'!C32&COUNTIF('Score bijhouden'!$C$4:C32,'Score bijhouden'!C32) -> 0
B62: 30 | C62: ='Score bijhouden'!C33&COUNTIF('Score bijhouden'!$C$4:C33,'Score bijhouden'!C33) -> 0
B63: 31 | C63: ='Score bijhouden'!C34&COUNTIF('Score bijhouden'!$C$4:C34,'Score bijhouden'!C34) -> 0
B64: 32 | C64: ='Score bijhouden'!C35&COUNTIF('Score bijhouden'!$C$4:C35,'Score bijhouden'!C35) -> 0
B65: 33 | C65: ='Score bijhouden'!C36&COUNTIF('Score bijhouden'!$C$4:C36,'Score bijhouden'!C36) -> 0
B66: 34 | C66: ='Score bijhouden'!C37&COUNTIF('Score bijhouden'!$C$4:C37,'Score bijhouden'!C37) -> 0
B67: 35 | C67: ='Score bijhouden'!C38&COUNTIF('Score bijhouden'!$C$4:C38,'Score bijhouden'!C38) -> 0
B68: 36 | C68: ='Score bijhouden'!C39&COUNTIF('Score bijhouden'!$C$4:C39,'Score bijhouden'!C39) -> 0
B69: 37 | C69: ='Score bijhouden'!C40&COUNTIF('Score bijhouden'!$C$4:C40,'Score bijhouden'!C40) -> 0
B70: 38 | C70: ='Score bijhouden'!C41&COUNTIF('Score bijhouden'!$C$4:C41,'Score bijhouden'!C41) -> 0
B71: 39 | C71: ='Score bijhouden'!C42&COUNTIF('Score bijhouden'!$C$4:C42,'Score bijhouden'!C42) -> 0
B72: 40 | C72: ='Score bijhouden'!C43&COUNTIF('Score bijhouden'!$C$4:C43,'Score bijhouden'!C43) -> 0
B73: 41 | C73: ='Score bijhouden'!C44&COUNTIF('Score bijhouden'!$C$4:C44,'Score bijhouden'!C44) -> 0
B74: 42 | C74: ='Score bijhouden'!C45&COUNTIF('Score bijhouden'!$C$4:C45,'Score bijhouden'!C45) -> 0
B75: 43 | C75: ='Score bijhouden'!C46&COUNTIF('Score bijhouden'!$C$4:C46,'Score bijhouden'!C46) -> 0
B76: 44 | C76: ='Score bijhouden'!C47&COUNTIF('Score bijhouden'!$C$4:C47,'Score bijhouden'!C47) -> 0
B77: 45 | C77: ='Score bijhouden'!C48&COUNTIF('Score bijhouden'!$C$4:C48,'Score bijhouden'!C48) -> 0
B78: 46 | C78: ='Score bijhouden'!C49&COUNTIF('Score bijhouden'!$C$4:C49,'Score bijhouden'!C49) -> 0
B79: 47 | C79: ='Score bijhouden'!C50&COUNTIF('Score bijhouden'!$C$4:C50,'Score bijhouden'!C50) -> 0
B80: 48 | C80: ='Score bijhouden'!C51&COUNTIF('Score bijhouden'!$C$4:C51,'Score bijhouden'!C51) -> 0
B81: 49 | C81: ='Score bijhouden'!C52&COUNTIF('Score bijhouden'!$C$4:C52,'Score bijhouden'!C52) -> 0
B82: 50 | C82: ='Score bijhouden'!C53&COUNTIF('Score bijhouden'!$C$4:C53,'Score bijhouden'!C53) -> 0
B83: 51 | C83: ='Score bijhouden'!C54&COUNTIF('Score bijhouden'!$C$4:C54,'Score bijhouden'!C54) -> 0
B84: 52 | C84: ='Score bijhouden'!C55&COUNTIF('Score bijhouden'!$C$4:C55,'Score bijhouden'!C55) -> 0
B85: 53 | C85: ='Score bijhouden'!C56&COUNTIF('Score bijhouden'!$C$4:C56,'Score bijhouden'!C56) -> 0
B86: 54 | C86: ='Score bijhouden'!C57&COUNTIF('Score bijhouden'!$C$4:C57,'Score bijhouden'!C57) -> 0
B87: 55 | C87: ='Score bijhouden'!C58&COUNTIF('Score bijhouden'!$C$4:C58,'Score bijhouden'!C58) -> 0
B88: 56 | C88: ='Score bijhouden'!C59&COUNTIF('Score bijhouden'!$C$4:C59,'Score bijhouden'!C59) -> 0
B89: 57 | C89: ='Score bijhouden'!C60&COUNTIF('Score bijhouden'!$C$4:C60,'Score bijhouden'!C60) -> 0
B90: 58 | C90: ='Score bijhouden'!C61&COUNTIF('Score bijhouden'!$C$4:C61,'Score bijhouden'!C61) -> 0
B91: 59 | C91: ='Score bijhouden'!C62&COUNTIF('Score bijhouden'!$C$4:C62,'Score bijhouden'!C62) -> 0
B92: 60 | C92: ='Score bijhouden'!C63&COUNTIF('Score bijhouden'!$C$4:C63,'Score bijhouden'!C63) -> 0
B93: 61 | C93: ='Score bijhouden'!C64&COUNTIF('Score bijhouden'!$C$4:C64,'Score bijhouden'!C64) -> 0
B94: 62 | C94: ='Score bijhouden'!C65&COUNTIF('Score bijhouden'!$C$4:C65,'Score bijhouden'!C65) -> 0
B95: 63 | C95: ='Score bijhouden'!C66&COUNTIF('Score bijhouden'!$C$4:C66,'Score bijhouden'!C66) -> 0
B96: 64 | C96: ='Score bijhouden'!C67&COUNTIF('Score bijhouden'!$C$4:C67,'Score bijhouden'!C67) -> 0
B97: 65 | C97: ='Score bijhouden'!C68&COUNTIF('Score bijhouden'!$C$4:C68,'Score bijhouden'!C68) -> 0
B98: 66 | C98: ='Score bijhouden'!C69&COUNTIF('Score bijhouden'!$C$4:C69,'Score bijhouden'!C69) -> 0
B99: 67 | C99: ='Score bijhouden'!C70&COUNTIF('Score bijhouden'!$C$4:C70,'Score bijhouden'!C70) -> 0
B100: 68 | C100: ='Score bijhouden'!C71&COUNTIF('Score bijhouden'!$C$4:C71,'Score bijhouden'!C71) -> 0
B101: 69 | C101: ='Score bijhouden'!C72&COUNTIF('Score bijhouden'!$C$4:C72,'Score bijhouden'!C72) -> 0
B102: 70 | C102: ='Score bijhouden'!C73&COUNTIF('Score bijhouden'!$C$4:C73,'Score bijhouden'!C73) -> 0
B103: 71 | C103: ='Score bijhouden'!C74&COUNTIF('Score bijhouden'!$C$4:C74,'Score bijhouden'!C74) -> 0
B104: 72 | C104: ='Score bijhouden'!C75&COUNTIF('Score bijhouden'!$C$4:C75,'Score bijhouden'!C75) -> 0
B105: 73 | C105: ='Score bijhouden'!C76&COUNTIF('Score bijhouden'!$C$4:C76,'Score bijhouden'!C76) -> 0
B106: 74 | C106: ='Score bijhouden'!C77&COUNTIF('Score bijhouden'!$C$4:C77,'Score bijhouden'!C77) -> 0
B107: 75 | C107: ='Score bijhouden'!C78&COUNTIF('Score bijhouden'!$C$4:C78,'Score bijhouden'!C78) -> 0
B108: 76 | C108: ='Score bijhouden'!C79&COUNTIF('Score bijhouden'!$C$4:C79,'Score bijhouden'!C79) -> 0
B109: 77 | C109: ='Score bijhouden'!C80&COUNTIF('Score bijhouden'!$C$4:C80,'Score bijhouden'!C80) -> 0
B110: 78 | C110: ='Score bijhouden'!C81&COUNTIF('Score bijhouden'!$C$4:C81,'Score bijhouden'!C81) -> 0
B111: 79 | C111: ='Score bijhouden'!C82&COUNTIF('Score bijhouden'!$C$4:C82,'Score bijhouden'!C82) -> 0
B112: 80 | C112: ='Score bijhouden'!C83&COUNTIF('Score bijhouden'!$C$4:C83,'Score bijhouden'!C83) -> 0
B113: 81 | C113: ='Score bijhouden'!C84&COUNTIF('Score bijhouden'!$C$4:C84,'Score bijhouden'!C84) -> 0
B114: 82 | C114: ='Score bijhouden'!C85&COUNTIF('Score bijhouden'!$C$4:C85,'Score bijhouden'!C85) -> 0
B115: 83 | C115: ='Score bijhouden'!C86&COUNTIF('Score bijhouden'!$C$4:C86,'Score bijhouden'!C86) -> 0
B116: 84 | C116: ='Score bijhouden'!C87&COUNTIF('Score bijhouden'!$C$4:C87,'Score bijhouden'!C87) -> 0
B117: 85 | C117: ='Score bijhouden'!C88&COUNTIF('Score bijhouden'!$C$4:C88,'Score bijhouden'!C88) -> 0
B118: 86 | C118: ='Score bijhouden'!C89&COUNTIF('Score bijhouden'!$C$4:C89,'Score bijhouden'!C89) -> 0
B119: 87 | C119: ='Score bijhouden'!C90&COUNTIF('Score bijhouden'!$C$4:C90,'Score bijhouden'!C90) -> 0
B120: 88 | C120: ='Score bijhouden'!C91&COUNTIF('Score bijhouden'!$C$4:C91,'Score bijhouden'!C91) -> 0
B121: 89 | C121: ='Score bijhouden'!C92&COUNTIF('Score bijhouden'!$C$4:C92,'Score bijhouden'!C92) -> 0
B122: 90 | C122: ='Score bijhouden'!C93&COUNTIF('Score bijhouden'!$C$4:C93,'Score bijhouden'!C93) -> 0
B123: 91 | C123: ='Score bijhouden'!C94&COUNTIF('Score bijhouden'!$C$4:C94,'Score bijhouden'!C94) -> 0
B124: 92 | C124: ='Score bijhouden'!C95&COUNTIF('Score bijhouden'!$C$4:C95,'Score bijhouden'!C95) -> 0
B125: 93 | C125: ='Score bijhouden'!C96&COUNTIF('Score bijhouden'!$C$4:C96,'Score bijhouden'!C96) -> 0
B126: 94 | C126: ='Score bijhouden'!C97&COUNTIF('Score bijhouden'!$C$4:C97,'Score bijhouden'!C97) -> 0
B127: 95 | C127: ='Score bijhouden'!C98&COUNTIF('Score bijhouden'!$C$4:C98,'Score bijhouden'!C98) -> 0
B128: 96 | C128: ='Score bijhouden'!C99&COUNTIF('Score bijhouden'!$C$4:C99,'Score bijhouden'!C99) -> 0
B129: 97 | C129: ='Score bijhouden'!C100&COUNTIF('Score bijhouden'!$C$4:C100,'Score bijhouden'!C100) -> 0
B130: 98 | C130: ='Score bijhouden'!C101&COUNTIF('Score bijhouden'!$C$4:C101,'Score bijhouden'!C101) -> 0
B131: 99 | C131: ='Score bijhouden'!C102&COUNTIF('Score bijhouden'!$C$4:C102,'Score bijhouden'!C102) -> 0
B132: 100 | C132: ='Score bijhouden'!C103&COUNTIF('Score bijhouden'!$C$4:C103,'Score bijhouden'!C103) -> 0
B133: 101 | C133: ='Score bijhouden'!C104&COUNTIF('Score bijhouden'!$C$4:C104,'Score bijhouden'!C104) -> 0
B134: 102 | C134: ='Score bijhouden'!C105&COUNTIF('Score bijhouden'!$C$4:C105,'Score bijhouden'!C105) -> 0
B135: 103 | C135: ='Score bijhouden'!C106&COUNTIF('Score bijhouden'!$C$4:C106,'Score bijhouden'!C106) -> 0
B136: 104 | C136: ='Score bijhouden'!C107&COUNTIF('Score bijhouden'!$C$4:C107,'Score bijhouden'!C107) -> 0
B137: 105 | C137: ='Score bijhouden'!C108&COUNTIF('Score bijhouden'!$C$4:C108,'Score bijhouden'!C108) -> 0
B138: 106 | C138: ='Score bijhouden'!C109&COUNTIF('Score bijhouden'!$C$4:C109,'Score bijhouden'!C109) -> 0
B139: 107 | C139: ='Score bijhouden'!C110&COUNTIF('Score bijhouden'!$C$4:C110,'Score bijhouden'!C110) -> 0
B140: 108 | C140: ='Score bijhouden'!C111&COUNTIF('Score bijhouden'!$C$4:C111,'Score bijhouden'!C111) -> 0
B141: 109 | C141: ='Score bijhouden'!C112&COUNTIF('Score bijhouden'!$C$4:C112,'Score bijhouden'!C112) -> 0
B142: 110 | C142: ='Score bijhouden'!C113&COUNTIF('Score bijhouden'!$C$4:C113,'Score bijhouden'!C113) -> 0
B143: 111 | C143: ='Score bijhouden'!C114&COUNTIF('Score bijhouden'!$C$4:C114,'Score bijhouden'!C114) -> 0
B144: 112 | C144: ='Score bijhouden'!C115&COUNTIF('Score bijhouden'!$C$4:C115,'Score bijhouden'!C115) -> 0
B145: 113 | C145: ='Score bijhouden'!C116&COUNTIF('Score bijhouden'!$C$4:C116,'Score bijhouden'!C116) -> 0
B146: 114 | C146: ='Score bijhouden'!C117&COUNTIF('Score bijhouden'!$C$4:C117,'Score bijhouden'!C117) -> 0
B147: 115 | C147: ='Score bijhouden'!C118&COUNTIF('Score bijhouden'!$C$4:C118,'Score bijhouden'!C118) -> 0
B148: 116 | C148: ='Score bijhouden'!C119&COUNTIF('Score bijhouden'!$C$4:C119,'Score bijhouden'!C119) -> 0
B149: 117 | C149: ='Score bijhouden'!C120&COUNTIF('Score bijhouden'!$C$4:C120,'Score bijhouden'!C120) -> 0
B150: 118 | C150: ='Score bijhouden'!C121&COUNTIF('Score bijhouden'!$C$4:C121,'Score bijhouden'!C121) -> 0
B151: 119 | C151: ='Score bijhouden'!C122&COUNTIF('Score bijhouden'!$C$4:C122,'Score bijhouden'!C122) -> 0
B152: 120 | C152: ='Score bijhouden'!C123&COUNTIF('Score bijhouden'!$C$4:C123,'Score bijhouden'!C123) -> 0
B153: 121 | C153: ='Score bijhouden'!C124&COUNTIF('Score bijhouden'!$C$4:C124,'Score bijhouden'!C124) -> 0
B154: 122 | C154: ='Score bijhouden'!C125&COUNTIF('Score bijhouden'!$C$4:C125,'Score bijhouden'!C125) -> 0
B155: 123 | C155: ='Score bijhouden'!C126&COUNTIF('Score bijhouden'!$C$4:C126,'Score bijhouden'!C126) -> 0
B156: 124 | C156: ='Score bijhouden'!C127&COUNTIF('Score bijhouden'!$C$4:C127,'Score bijhouden'!C127) -> 0
B157: 125 | C157: ='Score bijhouden'!C128&COUNTIF('Score bijhouden'!$C$4:C128,'Score bijhouden'!C128) -> 0
B158: 126 | C158: ='Score bijhouden'!C129&COUNTIF('Score bijhouden'!$C$4:C129,'Score bijhouden'!C129) -> 0
B159: 127 | C159: ='Score bijhouden'!C130&COUNTIF('Score bijhouden'!$C$4:C130,'Score bijhouden'!C130) -> 0
B160: 128 | C160: ='Score bijhouden'!C131&COUNTIF('Score bijhouden'!$C$4:C131,'Score bijhouden'!C131) -> 0
B161: 129 | C161: ='Score bijhouden'!C132&COUNTIF('Score bijhouden'!$C$4:C132,'Score bijhouden'!C132) -> 0
B162: 130 | C162: ='Score bijhouden'!C133&COUNTIF('Score bijhouden'!$C$4:C133,'Score bijhouden'!C133) -> 0
B163: 131 | C163: ='Score bijhouden'!C134&COUNTIF('Score bijhouden'!$C$4:C134,'Score bijhouden'!C134) -> 0
B164: 132 | C164: ='Score bijhouden'!C135&COUNTIF('Score bijhouden'!$C$4:C135,'Score bijhouden'!C135) -> 0
B165: 133 | C165: ='Score bijhouden'!C136&COUNTIF('Score bijhouden'!$C$4:C136,'Score bijhouden'!C136) -> 0
B166: 134 | C166: ='Score bijhouden'!C137&COUNTIF('Score bijhouden'!$C$4:C137,'Score bijhouden'!C137) -> 0
B167: 135 | C167: ='Score bijhouden'!C138&COUNTIF('Score bijhouden'!$C$4:C138,'Score bijhouden'!C138) -> 0
B168: 136 | C168: ='Score bijhouden'!C139&COUNTIF('Score bijhouden'!$C$4:C139,'Score bijhouden'!C139) -> 0
B169: 137 | C169: ='Score bijhouden'!C140&COUNTIF('Score bijhouden'!$C$4:C140,'Score bijhouden'!C140) -> 0
B170: 138 | C170: ='Score bijhouden'!C141&COUNTIF('Score bijhouden'!$C$4:C141,'Score bijhouden'!C141) -> 0
B171: 139 | C171: ='Score bijhouden'!C142&COUNTIF('Score bijhouden'!$C$4:C142,'Score bijhouden'!C142) -> 0
B172: 140 | C172: ='Score bijhouden'!C143&COUNTIF('Score bijhouden'!$C$4:C143,'Score bijhouden'!C143) -> 0
B173: 141 | C173: ='Score bijhouden'!C144&COUNTIF('Score bijhouden'!$C$4:C144,'Score bijhouden'!C144) -> 0
B174: 142 | C174: ='Score bijhouden'!C145&COUNTIF('Score bijhouden'!$C$4:C145,'Score bijhouden'!C145) -> 0
B175: 143 | C175: ='Score bijhouden'!C146&COUNTIF('Score bijhouden'!$C$4:C146,'Score bijhouden'!C146) -> 0
B176: 144 | C176: ='Score bijhouden'!C147&COUNTIF('Score bijhouden'!$C$4:C147,'Score bijhouden'!C147) -> 0
B177: 145 | C177: ='Score bijhouden'!C148&COUNTIF('Score bijhouden'!$C$4:C148,'Score bijhouden'!C148) -> 0
B178: 146 | C178: ='Score bijhouden'!C149&COUNTIF('Score bijhouden'!$C$4:C149,'Score bijhouden'!C149) -> 0
B179: 147 | C179: ='Score bijhouden'!C150&COUNTIF('Score bijhouden'!$C$4:C150,'Score bijhouden'!C150) -> 0
B180: 148 | C180: ='Score bijhouden'!C151&COUNTIF('Score bijhouden'!$C$4:C151,'Score bijhouden'!C151) -> 0
B181: 149 | C181: ='Score bijhouden'!C152&COUNTIF('Score bijhouden'!$C$4:C152,'Score bijhouden'!C152) -> 0
B182: 150 | C182: ='Score bijhouden'!C153&COUNTIF('Score bijhouden'!$C$4:C153,'Score bijhouden'!C153) -> 0
B183: 151 | C183: ='Score bijhouden'!C154&COUNTIF('Score bijhouden'!$C$4:C154,'Score bijhouden'!C154) -> 0
B184: 152 | C184: ='Score bijhouden'!C155&COUNTIF('Score bijhouden'!$C$4:C155,'Score bijhouden'!C155) -> 0
B185: 153 | C185: ='Score bijhouden'!C156&COUNTIF('Score bijhouden'!$C$4:C156,'Score bijhouden'!C156) -> 0
B186: 154 | C186: ='Score bijhouden'!C157&COUNTIF('Score bijhouden'!$C$4:C157,'Score bijhouden'!C157) -> 0
B187: 155 | C187: ='Score bijhouden'!C158&COUNTIF('Score bijhouden'!$C$4:C158,'Score bijhouden'!C158) -> 0
B188: 156 | C188: ='Score bijhouden'!C159&COUNTIF('Score bijhouden'!$C$4:C159,'Score bijhouden'!C159) -> 0
B189: 157 | C189: ='Score bijhouden'!C160&COUNTIF('Score bijhouden'!$C$4:C160,'Score bijhouden'!C160) -> 0
B190: 158 | C190: ='Score bijhouden'!C161&COUNTIF('Score bijhouden'!$C$4:C161,'Score bijhouden'!C161) -> 0
B191: 159 | C191: ='Score bijhouden'!C162&COUNTIF('Score bijhouden'!$C$4:C162,'Score bijhouden'!C162) -> 0
B192: 160 | C192: ='Score bijhouden'!C163&COUNTIF('Score bijhouden'!$C$4:C163,'Score bijhouden'!C163) -> 0
B193: 161 | C193: ='Score bijhouden'!C164&COUNTIF('Score bijhouden'!$C$4:C164,'Score bijhouden'!C164) -> 0
B194: 162 | C194: ='Score bijhouden'!C165&COUNTIF('Score bijhouden'!$C$4:C165,'Score bijhouden'!C165) -> 0
B195: 163 | C195: ='Score bijhouden'!C166&COUNTIF('Score bijhouden'!$C$4:C166,'Score bijhouden'!C166) -> 0
B196: 164 | C196: ='Score bijhouden'!C167&COUNTIF('Score bijhouden'!$C$4:C167,'Score bijhouden'!C167) -> 0
B197: 165 | C197: ='Score bijhouden'!C168&COUNTIF('Score bijhouden'!$C$4:C168,'Score bijhouden'!C168) -> 0
B198: 166 | C198: ='Score bijhouden'!C169&COUNTIF('Score bijhouden'!$C$4:C169,'Score bijhouden'!C169) -> 0
B199: 167 | C199: ='Score bijhouden'!C170&COUNTIF('Score bijhouden'!$C$4:C170,'Score bijhouden'!C170) -> 0
B200: 168 | C200: ='Score bijhouden'!C171&COUNTIF('Score bijhouden'!$C$4:C171,'Score bijhouden'!C171) -> 0
B201: 169 | C201: ='Score bijhouden'!C172&COUNTIF('Score bijhouden'!$C$4:C172,'Score bijhouden'!C172) -> 0
B202: 170 | C202: ='Score bijhouden'!C173&COUNTIF('Score bijhouden'!$C$4:C173,'Score bijhouden'!C173) -> 0
B203: 171 | C203: ='Score bijhouden'!C174&COUNTIF('Score bijhouden'!$C$4:C174,'Score bijhouden'!C174) -> 0
... 454 more rows
